[Event "1st Serbian League 2022"]
[Site "Vrnjacka Banja"]
[Date "2022.09.24"]
[Round "5.8"]
[White "Damljanovic, Branko"]
[Black "Atalik, Suat"]
[Result "1/2-1/2"]
[ECO "A01"]
[WhiteElo "2436"]
[BlackElo "2436"]
[Annotator "TA"]
[PlyCount "84"]
[EventDate "2022.09.20"]
[EventType "team-tourn"]
[EventCountry "SRB"]
[SourceTitle "playchess.com"]
[Source "ChessBase"]
[SourceQuality "1"]
[TimeControl "40/5400+30:1800+30"]

{[%evp 9,84,-1,0,0,0,0,0,0,0,-10,-3,-22,-20,-12,-5,-11,-8,-22,-20,-15,-30,-24,-19,-12,-18,-26,-21,-19,-27,-28,-11,-38,0,-34,-37,-35,-20,-53,-50,-53,-13,-28,-19,-21,-6,-4,-6,-6,-7,-11,-6,-14,0,-7,0,0,0,0,0,0,0,0,0,7,0,0,0,0,0,0,0,0,0,0,0,0,14]} 1. b3 {[%emt 0:00:39]} c5 {[%emt 0:00:57]} 2. Bb2 {[%emt 0:00:11]} Nc6 {[%emt 0:00:55]} 3. e3 {[%emt 0:00:47]} e6 {[%emt 0:02:27]} 4. f4 {[%emt 0:01:03]} b6 {[%emt 0:01:19]} 5. Nf3 {[%emt 0:00:43]} Nf6 {[%emt 0:00:43]} 6. g3 {[%emt 0:00:11] A01: Nimzowitsch-Larsen Opening.} d5 {[%emt 0:01:40]} 7. Bg2 {[%emt 0:00:05]} Ba6 {[%emt 0:03:36] [#]} 8. a4 $146 {[%emt 0:04:57]} ({Predecessor:} 8. d3 Ng4 9. Qd2 Nb4 10. a3 Nc6 11. h3 Nf6 12. c4 Na5 13. Qc2 Bb7 14. O-O {0-1 (35) Yanqui,F (1884)-Silva,J Cuenca 2006}) 8... Be7 {[%emt 0:02:24]} 9. Na3 {[%emt 0:00:14]} O-O {[%emt 0:00:33]} 10. Nb5 {[%emt 0:00:11]} Bb7 {[%emt 0:00:29]} (10... Ng4 {is more complex.} 11. O-O Bb7 12. Qe2 a6) 11. O-O {[%emt 0:00:07]} a6 {[%emt 0:00:37]} 12. Na3 {[%emt 0:00:02]} Ne4 {[%emt 0:15:39]} 13. Ne5 {[%emt 0:15:24]} Nxe5 {[%emt 0:02:24]} 14. fxe5 {[%emt 0:06:06] [#] aiming for d3.} f5 {[%emt 0:00:13]} 15. exf6 {[%emt 0:02:06]} Bxf6 {[%emt 0:02:26]} 16. Bxf6 {[%emt 0:00:09]} Nxf6 {[%emt 0:00:30]} 17. Qe2 {[%emt 0:12:06]} Qc7 {[%emt 0:10:22]} 18. d3 {[%emt 0:00:08]} Rad8 {[%emt 0:02:25]} 19. Rae1 {[%emt 0:04:52]} Bc6 {[%emt 0:02:14]} 20. d4 {[%emt 0:09:31]} Qb7 {[%emt 0:03:44]} 21. c3 {[%emt 0:02:34]} Rfe8 {[%emt 0:00:41]} 22. Qb2 {[%emt 0:01:09]} e5 {[%emt 0:01:46]} 23. Nc2 {[%emt 0:00:26]} a5 {[%emt 0:02:02]} 24. Na3 {[%emt 0:04:45]} Re7 {[%emt 0:10:33]} 25. Re2 {[%emt 0:10:57]} (25. c4 {is interesting.} exd4 26. exd4 h6 27. cxd5 Nxd5 28. Nc4) 25... exd4 {[%emt 0:02:45]} (25... Qc7 {with more complications.} 26. Qd2 Qd6 27. Nb5 Bxb5 28. axb5 Qd7) 26. exd4 {[%emt 0:00:31] The position is equal.} (26. cxd4 {feels hotter.} Qd7 27. dxc5 bxc5 28. Qc2) 26... cxd4 {[%emt 0:00:51]} 27. cxd4 {[%emt 0:00:07]} Rxe2 {[%emt 0:00:08]} 28. Qxe2 {[%emt 0:00:15] [#] Black must now prevent Qe6+.} Re8 {[%emt 0:00:05] Prevents Qe6+.} 29. Qd2 {[%emt 0:03:10]} Qe7 {[%emt 0:01:38]} 30. Nc2 {[%emt 0:00:05]} Qe2 {[%emt 0:04:03]} 31. Qc3 {[%emt 0:00:35]} Qe6 {[%emt 0:00:26]} 32. Re1 {[%emt 0:00:26]} Qd7 {[%emt 0:04:39]} 33. Rxe8+ {[%emt 0:01:24]} Qxe8 {[%emt 0:00:30]} 34. Ne3 {[%emt 0:02:36]} g6 {[%emt 0:01:24][%cal Bg7g6,Bg6g5][%mdl 32]} 35. Bf3 {[%emt 0:02:35]} Kg7 {[%emt 0:00:47]} 36. Ng2 {[%emt 0:01:10]} h6 {[%emt 0:01:38]} (36... Ne4 $2 37. Bxe4 Qxe4 38. Qxc6 $18) 37. Kf2 {[%emt 0:02:34]} Qe6 {[%emt 0:02:16]} 38. Nf4 {[%emt 0:01:19]} Qd6 {[%emt 0:00:13]} 39. Qe3 {[%emt 0:01:59]} g5 $1 {[%emt 0:00:44]} 40. Nh5+ {[%emt 0:10:49]} Nxh5 {[%emt 0:00:11]} 41. Bxh5 {[%emt 0:30:01]} Qf6+ {[%emt 0:30:43]} 42. Ke1 {[%emt 0:00:32]} b5 {[%emt 0:04:16] Weighted Error Value: White=0.05 (flawless) /Black=0.05 (flawless)} 1/2-1/2

[Event "1st Serbian League 2022"]
[Site "Vrnjacka Banja"]
[Date "2022.09.24"]
[Round "5.9"]
[White "Vucinic, Gojko"]
[Black "Tadic, Branko"]
[Result "0-1"]
[ECO "B32"]
[WhiteElo "2380"]
[BlackElo "2455"]
[Annotator "TA"]
[PlyCount "80"]
[EventDate "2022.09.20"]
[EventType "team-tourn"]
[EventCountry "SRB"]
[SourceTitle "playchess.com"]
[Source "ChessBase"]
[SourceQuality "1"]
[TimeControl "40/5400+30:1800+30"]

{[%evp 14,80,27,25,36,38,32,12,38,18,18,18,17,0,0,0,1,9,6,-45,-22,-211,-205,-266,-256,-349,-204,-197,-197,-254,-256,-227,-99,-78,-77,-116,-11,-23,-33,-25,-35,-24,-24,-22,-23,-10,0,0,0,0,0,0,0,-9,-16,-10,-14,-15,0,-284,-274,-606,-600,-5156,-2737,-5119,-603,-566,-540]} 1. e4 {[%emt 0:00:29]} c5 {[%emt 0:01:07]} 2. Nf3 {[%emt 0:00:04][%cal Bg1f3,Bf3d4,Bd4b5][%mdl 32]} Nc6 {[%emt 0:00:28]} 3. d4 {[%emt 0:00:05]} cxd4 {[%emt 0:00:06]} 4. Nxd4 {[%emt 0:00:02]} e5 {[%emt 0:00:50]} 5. Nb5 {[%emt 0:00:05]} d6 {[%emt 0:00:04]} 6. c4 {[%emt 0:00:04]} Be6 $1 {[%emt 0:02:24][%mdl 4] is now more promising than 6...Be7.} 7. N1c3 {[%emt 0:01:26]} a6 {[%emt 0:00:41]} 8. Na3 {[%emt 0:00:12]} g6 {[%emt 0:01:03] B32: Sicilian: Löwenthal and Kalashnikov Variations.} 9. Be3 {[%emt 0:06:32]} Bg7 {[%emt 0:05:59]} 10. Qd2 {[%emt 0:04:17]} Nf6 {[%emt 0:01:48][%cal Oc6d4] The position is equal.} 11. Be2 {[%emt 0:04:52]} O-O {[%emt 0:02:29]} 12. O-O {[%emt 0:01:40]} Rc8 {[%emt 0:00:44]} 13. Rfd1 {[%emt 0:12:16]} Nd4 $1 {[%emt 0:02:51][%cal Ob7b5] [#]} 14. Rac1 $146 {[%emt 0:10:59]} (14. Bxd4 exd4 15. Qxd4 Nd5 $1 $17) ({Predecessor:} 14. f3 Qa5 15. Bf1 Nd7 16. Ne2 Qxd2 17. Rxd2 Nc6 18. b3 {0-1 (89) Salemgareev,T (2480)-Grachev,A (2302) Cheliabinsk 2021}) 14... Ng4 {[%emt 0:11:17]} 15. Bxg4 {[%emt 0:06:20]} Bxg4 {[%emt 0:00:13]} 16. Rf1 {[%emt 0:00:03]} ({White should play} 16. Re1 $11) 16... Bf3 $15 {[%emt 0:06:11][%cal Od8h4]} 17. Rfe1 $2 {[%emt 0:10:06]} (17. Qd3 $1 $11 Qh4 18. Bxd4 exd4 19. Qxf3 dxc3 20. b3 (20. g3 Qe7 $17)) 17... Qh4 $1 $19 {[%emt 0:21:29] ( -> ...Qg4)} 18. h3 {[%emt 0:00:17] Prevents Qg4.} (18. Bxd4 $2 Qg4 19. Qg5 Qxg5 $19) 18... f5 $1 {[%emt 0:00:24][%cal Of5f4] Threatens to win with ...f4!} 19. Nc2 {[%emt 0:11:15][%cal Rc2d4] [#]} Bxg2 $1 {[%emt 0:04:07][%mdl 512]} 20. Kxg2 {[%emt 0:05:27][%cal Rc2d4]} f4 $1 {[%emt 0:04:42]} 21. Bxf4 {[%emt 0:07:59]} (21. Bxd4 $2 f3+ 22. Kh2 exd4 $19) (21. Nxd4 $2 fxe3 22. Nf3 exd2 $19) (21. Rf1 $142) 21... Rxf4 {[%emt 0:16:46]} (21... Qxf4 22. Qxf4 exf4 23. Nxd4 Bxd4 24. b3 $11) 22. Nxd4 {[%emt 0:00:04] Black must now prevent Ne6.} Rcf8 {[%emt 0:00:44]} ({Inferior is} 22... exd4 23. Nd5 Be5 24. Nxf4 Bxf4 25. Qd1 Bxc1 26. Qxc1 $17) (22... Bh6 $1 $19 {and Black stays clearly on top.} 23. Nf3 (23. Ne6 $2 Rg4+ 24. Kf3 Bxd2 $19) 23... Rxf3 $1 {[%mdl 512]} 24. Qd5+ Kh8 25. Kxf3 Rf8+ 26. Ke2 Bxc1) 23. Nf5 $17 {[%emt 0:00:23]} gxf5 {[%emt 0:00:15] Chess con chili.} 24. Rc2 {[%emt 0:01:44] [#]} fxe4 {[%emt 0:00:51] Black is more active.} (24... Kh8 $1 $17 25. Qd3 (25. Nd5 $2 fxe4 26. Nxf4 exf4 $19) 25... Bh6) 25. Nxe4 {[%emt 0:01:57][%cal Od2d6]} Kh8 {[%emt 0:00:32]} 26. Qd5 {[%emt 0:01:19]} Rf3 {[%emt 0:04:29]} 27. Ng3 {[%emt 0:00:47]} Qf6 {[%emt 0:03:47][%cal Rf3f2]} 28. Ree2 {[%emt 0:02:19]} b6 {[%emt 0:00:06]} 29. b4 $1 {[%emt 0:05:44]} Rf4 {[%emt 0:00:09]} 30. Rcd2 {[%emt 0:03:10]} Rd4 {[%emt 0:03:01]} 31. Rxd4 {[%emt 0:01:18]} exd4 {[%emt 0:00:01][%cal Be5d4,Bd4d3][%mdl 32]} 32. a4 {[%emt 0:00:51]} Qg6 {[%emt 0:00:49]} 33. Re6 {[%emt 0:02:09]} Qf7 {[%emt 0:01:30]} 34. Re2 {[%emt 0:00:31]} Qxd5+ {[%emt 0:03:16]} 35. cxd5 $11 {[%emt 0:00:04][%mdl 4096] Endgame KRB-KRN} Rc8 {[%emt 0:00:05]} 36. f4 $2 {[%emt 0:00:54][%mdl 8192]} (36. Nf5 $11 {and White is okay.}) 36... d3 $19 {[%emt 0:00:32]} 37. Rd2 {[%emt 0:00:04]} (37. Re1 d2 38. Rd1) 37... Rc2 {[%emt 0:00:06] Black is clearly winning.} 38. Nf1 {[%emt 0:00:58]} Bc3 {[%emt 0:00:08][%csl LRb4,LRd2]} 39. Rf2 {[%emt 0:00:04]} Bd4 {[%emt 0:00:24]} (39... Be1 $142 40. Nd2 Bxd2) 40. Rd2 {[%emt 0:00:38] [#]} Be3 $1 {[%emt 0:00:24][%mdl 512] Weighted Error Value: White=0.66/Black=0.25 (precise)} 0-1

[Event "1st Serbian League 2022"]
[Site "Vrnjacka Banja"]
[Date "2022.09.24"]
[Round "5.10"]
[White "Nikolovski, Nikola"]
[Black "Saric, Sinisa"]
[Result "1/2-1/2"]
[ECO "B01"]
[WhiteElo "2359"]
[BlackElo "2372"]
[Annotator "TA"]
[PlyCount "58"]
[EventDate "2022.09.20"]
[EventType "team-tourn"]
[EventCountry "SRB"]
[SourceTitle "playchess.com"]
[Source "ChessBase"]
[SourceQuality "1"]
[TimeControl "40/5400+30:1800+30"]

{[%evp 10,58,50,37,44,44,50,-31,46,13,31,16,23,0,11,0,34,24,22,17,49,9,55,56,47,47,91,92,100,104,106,66,69,88,74,68,73,62,70,69,72,44,67,31,91,43,50,0,95,0,53]} 1. e4 {[%emt 0:00:09]} d5 {[%emt 0:00:20]} 2. exd5 {[%emt 0:00:28]} Qxd5 {[%emt 0:00:10]} 3. Nc3 {[%emt 0:01:20]} Qd6 {[%emt 0:00:15]} 4. d4 {[%emt 0:00:26]} Nf6 {[%emt 0:00:07]} 5. Nf3 {[%emt 0:01:00]} c6 {[%emt 0:00:12]} 6. Ne5 {[%emt 0:01:07]} Be6 {[%emt 0:00:18] B01: Scandinavian Defence.} 7. Bf4 {[%emt 0:05:23][%cal Oe5g6]} Qd8 {[%emt 0:00:18]} 8. Qf3 {[%emt 0:20:20] [#]} (8. a4 $14) 8... Nbd7 $146 {[%emt 0:08:16]} ({Black should play} 8... Qxd4 $15 9. Rd1 Qc5) ({Predecessor:} 8... Qxd4 9. Bd3 Nbd7 10. Nxc6 bxc6 11. Nb5 Bd5 12. Nxd4 Bxf3 13. Nxf3 e6 14. O-O-O Nd5 {½-½ (30) Petrosian,D (2399)-Tiviakov,S (2590) Yerevan 2016}) 9. Bd3 {[%emt 0:06:07]} g6 {[%emt 0:02:05]} 10. O-O {[%emt 0:12:53]} Bg7 {[%emt 0:00:41]} 11. Rad1 {[%emt 0:08:54]} O-O {[%emt 0:02:21]} 12. Qe3 {[%emt 0:09:11]} Qc8 {[%emt 0:37:56]} 13. h3 {[%emt 0:08:12]} Rd8 {[%emt 0:00:53]} 14. Be2 {[%emt 0:08:00]} Nb6 {[%emt 0:05:56]} 15. Bh6 {[%emt 0:02:49]} Bf5 {[%emt 0:13:07]} (15... Bxh6 $11 {was preferrable.} 16. Qxh6 c5) 16. Bxg7 $1 $14 {[%emt 0:02:47]} Kxg7 {[%emt 0:00:03]} 17. g4 {[%emt 0:00:21]} Be6 {[%emt 0:04:54]} 18. f4 {[%emt 0:00:07][%cal Of4f5] White is more active.} Nbd5 {[%emt 0:04:44]} 19. Nxd5 {[%emt 0:01:38]} Nxd5 {[%emt 0:00:36]} 20. Qf2 {[%emt 0:02:24] [#] Threatens to win with c4.} f6 {[%emt 0:01:18]} 21. Nd3 {[%emt 0:00:17]} ({Much weaker is} 21. f5 fxe5 22. fxe6 Qxe6 $15) 21... Bf7 {[%emt 0:01:17]} 22. Rfe1 {[%emt 0:01:56]} a5 {[%emt 0:02:47]} 23. a3 {[%emt 0:01:44]} Qc7 {[%emt 0:00:28]} 24. Bf1 {[%emt 0:00:27]} Re8 {[%emt 0:02:03]} 25. Re2 {[%emt 0:01:10]} Rad8 {[%emt 0:00:55]} 26. Rde1 {[%emt 0:00:18]} Nb6 {[%emt 0:05:16]} (26... Qd6 $14) 27. Nc5 {[%emt 0:00:06]} (27. g5 $16) 27... Nd5 {[%emt 0:00:17]} 28. Nd3 {[%emt 0:00:48]} (28. g5 $5 {[%cal Rc2c4]}) 28... Nb6 $1 {[%emt 0:00:09]} 29. Nc5 {[%emt 0:01:02]} Nd5 $1 {[%emt 0:00:35] Weighted Error Value: White=0.23 (precise) /Black=0.16 (very precise)} 1/2-1/2

[Event "1st Serbian League 2022"]
[Site "Vrnjacka Banja"]
[Date "2022.09.24"]
[Round "5.11"]
[White "Milosevic, Milos"]
[Black "Milenkovic, Mladen"]
[Result "1/2-1/2"]
[ECO "B75"]
[WhiteElo "2379"]
[BlackElo "2379"]
[Annotator "TA"]
[PlyCount "87"]
[EventDate "2022.09.20"]
[EventType "team-tourn"]
[EventCountry "SRB"]
[SourceTitle "playchess.com"]
[Source "ChessBase"]
[SourceQuality "1"]
[TimeControl "40/5400+30:1800+30"]

{[%evp 21,87,118,106,83,104,108,107,104,108,111,116,75,80,43,81,74,211,172,203,215,465,243,417,220,379,353,341,334,322,259,247,254,248,98,262,216,203,204,222,207,389,166,475,470,765,372,396,353,911,902,745,0,187,191,190,190,976,0,0,0,0,0,0,0,0,0,0,0]} 1. e4 {[%emt 0:00:02]} c5 {[%emt 0:00:16]} 2. Nf3 {[%emt 0:00:10]} d6 {[%emt 0:00:10]} 3. d4 {[%emt 0:00:03]} cxd4 {[%emt 0:00:09]} 4. Nxd4 {[%emt 0:00:03]} Nf6 {[%emt 0:00:13]} 5. Nc3 {[%emt 0:00:05]} g6 {[%emt 0:00:11]} 6. Be3 {[%emt 0:00:04]} a6 {[%emt 0:00:06]} 7. f3 {[%emt 0:00:19]} Nbd7 {[%emt 0:02:05]} 8. Qd2 {[%emt 0:00:13]} b5 {[%emt 0:01:34]} 9. a4 {[%emt 0:00:23]} bxa4 {[%emt 0:01:11]} 10. Rxa4 {[%emt 0:05:35]} Bb7 {[%emt 0:20:01]} 11. Be2 {[%emt 0:03:09]} Bg7 {[%emt 0:09:13]} 12. O-O {[%emt 0:00:18] B75: Sicilian Dragon: Yugoslav Attack, Miscellaneous.} O-O {[%emt 0:00:23]} 13. Nb3 $1 {[%emt 0:04:10]} Qc7 {[%emt 0:07:10][%cal Od6d5] [#]} 14. Na5 $146 {[%emt 0:01:26] White is better.} ({Predecessor:} 14. Rc4 Qb8 15. Ra1 Rc8 16. Rb4 Nc5 17. Na5 Rc7 18. e5 Ne8 19. Nd5 {1-0 (19) Boys,K (2125)-Kohler,H (1737) IECC email 2017}) 14... Rfb8 {[%emt 0:02:05]} 15. Rfa1 {[%emt 0:01:23]} Nb6 {[%emt 0:02:04] Against Rc4} 16. Rb4 {[%emt 0:02:45]} Bc8 {[%emt 0:00:14]} 17. f4 {[%emt 0:55:49][%cal Bf3f4,Bf4f5][%mdl 32]} e6 {[%emt 0:19:25]} 18. Bf3 {[%emt 0:05:50][%cal Oe4e5] aiming for e5!} e5 {[%emt 0:03:00]} (18... d5 $16 {was called for.}) 19. Qf2 $18 {[%emt 0:02:26][%cal Re3b6]} Nfd7 {[%emt 0:02:21]} 20. f5 {[%emt 0:00:24]} Bf8 $2 {[%emt 0:09:45]} (20... Nc5 21. Nb3 a5 22. Nxa5 Bd7) 21. Rb3 {[%emt 0:00:15]} (21. fxg6 $142 hxg6 22. Rf1) 21... Nc5 $2 {[%emt 0:00:51] [#]} (21... Bg7 22. g4 Nc5) 22. Rba3 {[%emt 0:00:18]} (22. Rxb6 $142 $1 {[%mdl 512]} Qxb6 (22... Rxb6 23. Nd5) 23. Nd5 Qxb2 24. Rf1) 22... d5 $2 {[%emt 0:01:02]} (22... Bd7 23. Bg4 (23. b4 Nca4 $16) 23... Bg7) 23. exd5 {[%emt 0:01:21]} Bxf5 {[%emt 0:06:05]} 24. Nc6 {[%emt 0:06:27]} e4 {[%emt 0:00:03]} 25. Bxc5 {[%emt 0:05:03]} exf3 {[%emt 0:00:44] [#]} 26. Bxf8 $1 {[%emt 0:00:06] The board is on fire.} (26. Rxa6 $6 Rxa6 27. Rxa6 Bxc5 28. Qxc5 Qf4 $16) (26. gxf3 Nxd5 27. Bxf8 Qxc6 $11) 26... Rxf8 {[%emt 0:01:19]} 27. Qxf3 {[%emt 0:03:12]} ({Resist} 27. Rxa6 $6 Rxa6 28. Rxa6 Nc8) (27. Qc5 $18 {has better winning chances. Ne7+ is the strong threat.} Nc8 28. Nb5 (28. Rxa6 Rxa6 29. Rxa6 fxg2 $14) (28. gxf3 Re8 $16)) 27... Bxc2 $2 {[%emt 0:07:30]} (27... Rfe8 $16 {was necessary.}) 28. Rxa6 {[%emt 0:01:14]} Rxa6 {[%emt 0:00:03]} 29. Rxa6 {[%emt 0:00:04]} Nc8 {[%emt 0:00:05]} 30. Qe2 {[%emt 0:02:13] Against Re8} Bf5 {[%emt 0:00:25]} (30... Bb3 31. g3 Qd7) 31. b4 {[%emt 0:00:30]} (31. g4 $142) 31... Bd7 {[%emt 0:03:15]} (31... Qf4) 32. Qe5 {[%emt 0:00:04]} Qb7 {[%emt 0:00:40] [#]} (32... Qxe5 $142 33. Nxe5 Bf5) 33. b5 {[%emt 0:00:44]} (33. Ne4 $142 $1 Bxc6 (33... Qxa6 34. Nf6+) 34. Nf6+ Kh8 35. Rxc6 Qa7+ 36. Kh1) 33... Re8 {[%emt 0:00:09] Against Ne7+} 34. Qd4 {[%emt 0:00:30]} Bxc6 $2 {[%emt 0:00:47]} (34... Nd6 35. Qc5 Nc8) 35. dxc6 {[%emt 0:00:42]} Qe7 {[%emt 0:00:01]} 36. h3 $2 {[%emt 0:00:32]} (36. Ra1 $18 Nb6 37. Qxb6) 36... Nd6 $2 {[%emt 0:00:02]} (36... Qe1+ $11 37. Kh2 Re3) 37. Nd5 {[%emt 0:00:24]} Qe1+ {[%emt 0:00:08]} 38. Kh2 {[%emt 0:00:04] White wants to mate with Nf6+.} Nf5 $2 {[%emt 0:00:07]} (38... Nxb5 39. Nf6+ Kh8) 39. Nf6+ $2 {[%emt 0:00:27]} (39. Qc3 $18 Qxc3 40. Nxc3) 39... Kh8 $11 {[%emt 0:00:07] ( -> ...Qg3+). The position is equal.} 40. Qf4 {[%emt 0:01:08] Prevents Qg3+. Active counter play!} Ne3 $1 {[%emt 0:00:01] Hoping for ...Nf1+.} 41. Ra1 {[%emt 0:13:08]} Qxa1 {[%emt 0:00:10]} 42. Nxe8 {[%emt 0:00:04]} Nf1+ {[%emt 0:00:07]} 43. Kg1 {[%emt 0:00:09]} Nd2+ $1 {[%emt 0:00:37]} 44. Kh2 {[%emt 0:02:24] Weighted Error Value: White=0.88/Black=0.67} 1/2-1/2

[Event "1st Serbian League 2022"]
[Site "Vrnjacka Banja"]
[Date "2022.09.24"]
[Round "5.12"]
[White "Zlatanovic, Boroljub"]
[Black "Vratonjic, Slobo"]
[Result "1/2-1/2"]
[ECO "A41"]
[WhiteElo "2313"]
[BlackElo "2253"]
[Annotator "TA"]
[PlyCount "38"]
[EventDate "2022.09.20"]
[EventType "team-tourn"]
[EventCountry "SRB"]
[SourceTitle "playchess.com"]
[Source "ChessBase"]
[SourceQuality "1"]
[TimeControl "40/5400+30:1800+30"]

{[%evp 10,38,-2,-6,14,-8,0,-8,0,0,12,0,0,-11,-8,-14,-10,0,0,0,0,0,0,0,0,0,0,0,12,2,5]} 1. c4 {[%emt 0:00:04]} e5 {[%emt 0:01:02]} 2. g3 {[%emt 0:00:32]} c6 {[%emt 0:00:48]} 3. d4 {[%emt 0:03:14]} d6 {[%emt 0:01:45]} 4. dxe5 {[%emt 0:04:22]} dxe5 {[%emt 0:01:14]} 5. Qxd8+ {[%emt 0:00:14]} Kxd8 {[%emt 0:00:02]} 6. Nc3 {[%emt 0:01:08] The position is equal.} Be6 {[%emt 0:03:34] A41: 1 d4 d6: Tartakower System and Modern Defence.} 7. e4 {[%emt 0:03:34]} Nd7 {[%emt 0:03:15]} 8. f4 {[%emt 0:05:22] [#] Hoping for f5.} g6 {[%emt 0:03:15] Prevents f5.} 9. Nf3 {[%emt 0:05:30]} f6 {[%emt 0:00:52] Inhibits Ng5.} 10. Be3 {[%emt 0:02:50] [#]} Bc5 $146 {[%emt 0:08:20]} ({Predecessor:} 10... Nh6 11. h3 exf4 12. gxf4 Bc5 13. Nd4 Bf7 14. O-O-O Ke7 15. a3 a5 16. Na4 Ba7 {0-1 (38) Tyurin,A (2261)-Brankovic,D (2302) Paracin 2022}) 11. Bxc5 {[%emt 0:17:31]} Nxc5 {[%emt 0:01:01]} 12. fxe5 {[%emt 0:03:49]} Bg4 {[%emt 0:00:30]} 13. Nd2 {[%emt 0:00:52]} fxe5 {[%emt 0:00:21]} 14. b4 {[%emt 0:00:16]} Nd7 {[%emt 0:00:57]} 15. Be2 {[%emt 0:01:31]} Ngf6 {[%emt 0:02:45]} 16. Bxg4 {[%emt 0:03:28]} Nxg4 {[%emt 0:00:38]} 17. Ke2 {[%emt 0:00:06]} a5 {[%emt 0:02:16]} 18. a3 {[%emt 0:00:57]} Kc7 {[%emt 0:02:35]} 19. Nf3 {[%emt 0:04:46]} Rhe8 {[%emt 0:05:40] Not much happened in this game.  Weighted Error Value: White=0.03 (flawless) /Black=0.05 (flawless)} 1/2-1/2

[Event "1st Serbian League 2022"]
[Site "Vrnjacka Banja"]
[Date "2022.09.24"]
[Round "5.13"]
[White "Sanal, Vahap"]
[Black "Sarana, Alexey"]
[Result "0-1"]
[ECO "B51"]
[WhiteElo "2595"]
[BlackElo "2662"]
[Annotator "TA"]
[PlyCount "70"]
[EventDate "2022.09.20"]
[EventType "team-tourn"]
[EventCountry "SRB"]
[SourceTitle "playchess.com"]
[Source "ChessBase"]
[SourceQuality "1"]
[TimeControl "40/5400+30:1800+30"]

{[%evp 9,70,7,22,-12,-20,-33,-22,-29,0,-12,-21,-37,-19,-23,-24,-30,-36,-47,-37,-37,-20,-27,-29,-21,-21,-75,-9,-55,0,-8,-7,-24,-32,-22,-31,-106,8,3,8,-83,-53,-87,-54,-78,-77,-124,-26,-51,-55,-39,-39,-37,-18,-23,-26,-172,-167,-281,-225,-399,-404,-398,-403]} 1. e4 {[%emt 0:03:56]} c5 {[%emt 0:00:01]} 2. Nf3 {[%emt 0:00:36]} d6 {[%emt 0:00:05]} 3. Bb5+ {[%emt 0:00:17]} Nd7 {[%emt 0:00:07]} 4. O-O {[%emt 0:00:08]} a6 {[%emt 0:00:08]} 5. Bd3 {[%emt 0:00:09]} e6 {[%emt 0:00:09]} 6. Re1 {[%emt 0:01:36] B51: Sicilian: Moscow Variation (3 Bb5+) without 3...Bd7.} g5 {[%emt 0:00:09][%cal Bg7g5,Bg5g4][%mdl 32] [#] Hoping for ...g4.} 7. Rf1 $146 {[%emt 0:04:00]} ({Predecessor:} 7. Kh1 g4 8. Ng1 h5 9. Bf1 Qf6 10. Qe2 Ne7 11. c3 Ng6 12. d4 cxd4 13. cxd4 Qxd4 {0-1 (78) Kovalev,V (2623)-Aronian,L (2785) Chess.com INT 2022}) 7... g4 {[%emt 0:08:21]} 8. Ne1 {[%emt 0:00:06] The position is equal.} Ngf6 {[%emt 0:00:05]} 9. Be2 {[%emt 0:04:18]} h5 {[%emt 0:07:05]} 10. d3 $1 {[%emt 0:00:48]} b5 {[%emt 0:00:14]} 11. a4 {[%emt 0:07:51]} Bb7 $36 {[%emt 0:03:19][%mdl 2048] Black has the initiative.} 12. c3 {[%emt 0:02:47][%cal Bc2c3,Bc3c4,Bc4b5][%mdl 32]} d5 {[%emt 0:02:52]} 13. exd5 {[%emt 0:00:44]} Nxd5 {[%emt 0:07:57]} 14. axb5 $1 {[%emt 0:11:19]} axb5 {[%emt 0:00:29]} (14... Bd6 {feels hotter.} 15. c4 Nf4 16. Bxf4 Bxf4 17. bxa6 Qb8) 15. Rxa8 {[%emt 0:00:07]} Bxa8 {[%emt 0:00:09]} 16. c4 {[%emt 0:07:58]} Ne7 {[%emt 0:00:41]} 17. d4 {[%emt 0:01:28]} (17. Nc3 $11) 17... cxd4 {[%emt 0:01:21] Black is more active.} (17... bxc4 $17 {Black wants to play ...Nf5.} 18. dxc5 Nf5 19. Bxc4 Bxc5) 18. Qxd4 {[%emt 0:00:15]} (18. Na3 $1 $11) 18... Ng6 {[%emt 0:00:19]} (18... Rg8 $1 $15 19. Nc3 Nf5) 19. cxb5 $11 {[%emt 0:02:17]} Qb8 {[%emt 0:03:54] aiming for ...Bd6.} 20. b4 {[%emt 0:13:57]} Rg8 {[%emt 0:16:06]} (20... Bd6 $5 21. f4 $8 e5 22. fxe5 Bxe5 $11) 21. Be3 {[%emt 0:06:12]} Bd6 {[%emt 0:12:47]} 22. f4 {[%emt 0:00:48] [#]} ({Better is} 22. g3 $1 $15) 22... e5 {[%emt 0:00:39]} (22... gxf3 $1 $17 23. Bxf3 (23. Nxf3 Ne7 $17) 23... Bxh2+ 24. Kh1 Qxb5) 23. fxe5 {[%emt 0:00:24]} Bxe5 {[%emt 0:00:02]} 24. Qc4 {[%emt 0:00:35]} (24. Qd2 $1 $11 {keeps the balance.}) 24... Bxh2+ $17 {[%emt 0:00:21]} 25. Kh1 {[%emt 0:00:07]} Nge5 {[%emt 0:00:19] Really sharp!} 26. Qa2 {[%emt 0:03:50]} Bg3 {[%emt 0:05:09]} 27. Nc3 {[%emt 0:04:21] [#]} Bb7 {[%emt 0:02:48]} ({Black should try} 27... Qd8 $1 $17 {[%cal Rd8h4] ( -> ...Qh4+)} 28. Kg1 Bb7) 28. Bf4 $1 $11 {[%emt 0:03:46]} Bxf4 {[%emt 0:01:56]} 29. Rxf4 {[%emt 0:00:02]} Qd8 {[%emt 0:00:38]} 30. Qd2 $1 {[%emt 0:01:10]} Qg5 {[%emt 0:02:50] Threatens to win with ...Nf8.} 31. Kg1 {[%emt 0:01:51]} Rg6 {[%emt 0:07:11][%cal Og6d6] And now ...Rd6! would win.} (31... Qh4 32. Ne4 Rg6 33. Nc5 $16) 32. Qe3 {[%emt 0:05:41] This costs White the game.} (32. Rd4 $1 $11 {and White is okay.}) 32... Re6 $19 {[%emt 0:01:54]} 33. Ne4 {[%emt 0:00:08]} (33. Qd2 {was called for.}) 33... Bxe4 {[%emt 0:04:02]} ({Weaker is} 33... Qh4 34. Nc2 Bxe4 35. Rxe4 $11) 34. Qxe4 {[%emt 0:01:21]} (34. Rxe4 Nf3+ 35. gxf3 Qxe3+ 36. Rxe3 Rxe3 37. Kf2) 34... Ng6 {[%emt 0:02:10] Pair of Knights!} 35. Qa8+ {[%emt 0:00:18]} Qd8 {[%emt 0:00:19] Weighted Error Value: White=0.27 (precise) /Black=0.20 (precise)} 0-1